bitfinex/quotes_BTCUSD_20230120
["timestamp","ask_amount","ask_price","bid_price","bid_amount"]
[1674251080826,0.01056525,22312.0,22311.0,1.62703749]
[1674251081091,0.01056525,22312.0,22311.0,2.12724649]
[1674251081339,0.01204729,22315.0,22312.0,0.15]
[1674251081591,0.01204729,22315.0,22314.0,0.0684]
[1674251081856,0.01204729,22315.0,22314.0,2.05231749]
[1674251082101,0.01204729,22315.0,22314.0,1.86917115]
[1674251082861,0.01204729,22315.0,22314.0,1.66217115]
[1674251083377,0.01204729,22315.0,22314.0,1.66223115]
[1674251084138,0.01204729,22315.0,22314.0,1.96223115]
[1674251084639,0.01204729,22315.0,22314.0,1.057758]
[1674251084921,0.01204729,22315.0,22314.0,0.989358]
[1674251085706,0.01204729,22315.0,22314.0,3.27093115]
[1674251086075,0.01204729,22315.0,22314.0,3.36393115]
[1674251086228,0.01204729,22315.0,22314.0,3.66393115]
[1674251087531,0.23204729,22315.0,22314.0,3.059458]
[1674251088048,0.23204729,22315.0,22314.0,2.759458]
[1674251088817,0.01204729,22315.0,22314.0,3.28213115]
[1674251089076,0.01204729,22315.0,22314.0,3.33163007]
[1674251089328,0.01204729,22315.0,22314.0,3.58207115]
[1674251090109,0.01204729,22315.0,22314.0,3.127598]
[1674251090362,0.01199307,22321.0,22315.0,0.6225]
[1674251090618,0.01199307,22321.0,22319.0,0.0684]
[1674251090874,0.01199307,22321.0,22320.0,1.52723034]
[1674251091124,0.01199307,22321.0,22320.0,1.98170349]
[1674251091376,0.01199307,22321.0,22320.0,2.43170349]
[1674251091635,0.01199307,22321.0,22320.0,2.24855715]
[1674251091886,0.01286624,22324.0,22320.0,2.24855715]
[1674251091887,0.01286624,22324.0,22323.0,0.05574042]
[1674251092146,0.01286624,22324.0,22323.0,1.39964442]
[1674251092492,0.01286624,22324.0,22323.0,1.69964442]
[1674251093179,0.01286624,22324.0,22323.0,1.79264442]
[1674251093444,0.01286624,22324.0,22323.0,1.69964442]
[1674251094859,0.01286624,22324.0,22323.0,1.79264442]
[1674251095114,0.01286624,22324.0,22323.0,2.60208557]
[1674251095372,0.01286624,22324.0,22323.0,2.69508557]
[1674251095634,0.01286624,22324.0,22323.0,2.60208557]
[1674251095893,0.01286624,22324.0,22323.0,1.44116442]
[1674251096154,0.05558624,22324.0,22323.0,0.99319642]
[1674251096512,0.01286624,22324.0,22323.0,0.00426042]
[1674251096765,0.01286624,22324.0,22323.0,0.09726042]
[1674251097810,0.01286624,22324.0,22323.0,0.30426042]
[1674251098061,0.05558624,22324.0,22323.0,0.09726042]
[1674251098317,0.05558624,22324.0,22323.0,0.00426042]
[1674251098564,0.05558624,22324.0,22323.0,0.09726042]
[1674251099060,0.01286624,22324.0,22323.0,0.09726042]
[1674251099304,0.01286624,22324.0,22323.0,0.30426042]
[1674251099555,0.01286624,22324.0,22323.0,0.39726042]
[1674251099800,0.01286624,22324.0,22323.0,0.39697674]
[1674251101069,0.05558624,22324.0,22323.0,0.09697674]
[1674251101318,0.01286624,22324.0,22323.0,0.09697674]
[1674251102371,0.05558624,22324.0,22323.0,0.09697674]
[1674251102891,0.01286624,22324.0,22323.0,0.17487674]
[1674251103158,0.05558624,22324.0,22323.0,0.17487674]
[1674251103419,0.12388624,22324.0,22323.0,0.17487674]
[1674251103674,0.43263424,22324.0,22323.0,0.17487674]
[1674251104436,0.58263424,22324.0,22323.0,0.08187674]
[1674251105962,0.59113424,22324.0,22323.0,0.08187674]
[1674251106225,0.59813424,22324.0,22323.0,0.08387674]
[1674251106735,0.59813424,22324.0,22323.0,0.07887674]
[1674251106986,0.65933424,22324.0,22323.0,0.07687674]
[1674251107250,1.26633424,22324.0,22323.0,0.08387674]
[1674251107505,1.25933424,22324.0,22323.0,0.07687674]
[1674251107760,1.26633424,22324.0,22323.0,0.08287674]
[1674251108014,0.65933424,22324.0,22323.0,0.07687674]
[1674251108233,0.66633424,22324.0,22323.0,0.007]
[1674251108452,0.65933424,22324.0,22321.0,0.09222183]
[1674251108698,0.0684,22322.0,22321.0,0.09222183]
[1674251108943,0.381846,22322.0,22321.0,0.09222183]
[1674251109209,0.531846,22322.0,22321.0,0.09222183]
[1674251109975,0.600246,22322.0,22321.0,0.09222183]
[1674251110230,0.600246,22322.0,22321.0,1.83e-06]
[1674251110484,1.200246,22322.0,22321.0,1.83e-06]
[1674251110759,2.39874158,22322.0,22320.0,0.50186183]
[1674251111002,6e-05,22320.0,22314.0,0.00705291]
[1674251111270,0.0681,22315.0,22314.0,0.00705291]
[1674251111560,0.51253843,22315.0,22314.0,0.00705291]
[1674251111815,0.327516,22315.0,22314.0,0.00705291]
[1674251112311,0.328516,22315.0,22314.0,0.09305291]
[1674251112563,0.396916,22315.0,22314.0,0.07905291]
[1674251112854,0.465316,22315.0,22314.0,0.07905291]
[1674251113094,0.615316,22315.0,22314.0,0.07905291]
[1674251113349,0.545916,22315.0,22312.0,0.91104108]
[1674251113598,0.383803,22314.0,22312.0,0.91104108]
[1674251113868,0.25342243,22314.0,22312.0,0.91104108]
[1674251114119,0.1027,22313.0,22312.0,0.91104108]
[1674251114369,1.05895343,22313.0,22312.0,0.91104108]
[1674251114612,2.11342658,22313.0,22312.0,0.91104108]
[1674251114848,2.45921184,22313.0,22306.0,0.00381302]
[1674251115109,0.0677,22307.0,22306.0,0.00381302]
[1674251115350,0.64165443,22307.0,22306.0,0.00381302]
[1674251115595,0.456632,22307.0,22306.0,0.00381302]
[1674251115844,0.606632,22307.0,22306.0,0.00381302]
[1674251116610,0.538932,22307.0,22306.0,0.00381302]
[1674251116861,0.388932,22307.0,22306.0,0.00381302]
[1674251117121,0.424932,22307.0,22306.0,0.00381302]
[1674251117888,0.538932,22307.0,22306.0,0.00381302]
[1674251118142,0.574932,22307.0,22306.0,0.00381302]
[1674251118404,0.7589188,22307.0,22306.0,0.00381302]
[1674251118662,0.8273188,22307.0,22306.0,0.00381302]
[1674251119197,0.643332,22307.0,22306.0,0.00381302]
[1674251119446,0.607332,22307.0,22306.0,0.00381302]
[1674251119717,0.643332,22307.0,22306.0,0.00381302]
[1674251119969,0.607332,22307.0,22306.0,0.00381302]
[1674251120219,0.742332,22307.0,22306.0,0.00381302]
[1674251120479,0.607332,22307.0,22306.0,0.00381302]
[1674251120728,0.643332,22307.0,22306.0,0.00387302]
[1674251121275,0.493332,22307.0,22306.0,0.00387302]
[1674251121808,0.424932,22307.0,22306.0,0.00381302]
[1674251122014,0.5340918,22307.0,22306.0,0.00381302]
[1674251122262,0.388932,22307.0,22306.0,0.00381302]
[1674251122505,0.538932,22307.0,22306.0,0.00381302]
[1674251123069,0.416432,22307.0,22306.0,0.00381302]
[1674251123289,0.0684,22307.0,22306.0,0.00381302]
[1674251123559,0.1044,22307.0,22306.0,0.00381302]
[1674251123821,0.0684,22307.0,22306.0,0.00381302]
[1674251124078,0.036,22307.0,22306.0,0.00381302]
[1674251124577,0.036,22307.0,22306.0,0.15381302]
[1674251124828,0.036,22307.0,22306.0,0.14881302]
[1674251125565,0.036,22307.0,22305.0,0.00744916]
[1674251126318,0.15,22309.0,22305.0,0.00744916]
[1674251126812,0.011,22307.0,22305.0,0.00744916]
[1674251127311,0.15,22309.0,22305.0,0.00744916]
[1674251127567,0.0679,22306.0,22305.0,0.00744916]
[1674251127808,0.404371,22306.0,22305.0,0.00744916]
[1674251128549,0.0681,22307.0,22305.0,0.00744916]
[1674251128811,0.0791,22307.0,22305.0,0.00744916]
[1674251129052,0.0681,22307.0,22305.0,0.00744916]
[1674251129301,0.011,22306.0,22305.0,0.00744916]
[1674251129559,0.0681,22307.0,22305.0,0.00744916]
[1674251129823,0.0791,22307.0,22305.0,0.00744916]
[1674251130565,0.0681,22307.0,22305.0,0.00744916]
[1674251131574,0.1052,22306.0,22305.0,0.00744916]
[1674251131821,0.0942,22306.0,22305.0,0.00744916]
[1674251132576,0.0791,22307.0,22303.0,0.92617581]
[1674251132829,0.0565026,22306.0,22304.0,0.15]
[1674251133137,0.0675026,22306.0,22304.0,0.33314634]
[1674251133385,0.0675026,22306.0,22304.0,0.898341]
[1674251133632,0.0565026,22306.0,22304.0,0.598341]
[1674251134478,0.0565026,22306.0,22304.0,0.15]
[1674251134903,0.0745026,22306.0,22304.0,0.15]
[1674251136692,0.0745026,22306.0,22304.0,0.45]
[1674251137471,0.0745026,22306.0,22304.0,0.15]
[1674251138487,0.0745026,22306.0,22303.0,0.92617581]
[1674251138741,0.0745026,22306.0,22304.0,0.45]
[1674251139245,0.0745026,22306.0,22304.0,0.15]
[1674251139965,0.0745026,22306.0,22303.0,0.92617581]
[1674251140461,0.0085,22305.0,22303.0,0.77617581]
[1674251141689,0.0085,22305.0,22304.0,0.15]
[1674251141946,0.06722,22305.0,22303.0,0.77617581]
[1674251142250,0.0245,22305.0,22303.0,0.77617581]
[1674251142501,0.31327,22304.0,22303.0,0.77617581]
[1674251142751,0.307696,22304.0,22303.0,0.77617581]
[1674251142994,0.0245,22305.0,22303.0,0.77617581]
[1674251144022,0.0085,22305.0,22303.0,0.77617581]
[1674251144273,0.0085,22306.0,22303.0,0.77617581]
[1674251144528,0.0195,22306.0,22303.0,0.77617581]
[1674251144777,0.016,22305.0,22304.0,0.45]
[1674251145027,0.016,22305.0,22304.0,0.15]
[1674251145549,0.011,22306.0,22304.0,0.45]
[1674251146847,0.018,22305.0,22304.0,0.63314634]
[1674251147208,0.018,22305.0,22304.0,0.898334]
[1674251147656,0.011,22306.0,22304.0,0.898334]
[1674251147910,0.018,22305.0,22304.0,0.898334]
[1674251148662,0.011,22306.0,22304.0,0.898334]
[1674251148917,0.029,22306.0,22304.0,0.898334]
[1674251149666,0.011,22306.0,22304.0,0.898334]
[1674251149933,0.018,22305.0,22304.0,0.898334]
[1674251150182,0.011,22306.0,22304.0,0.898334]
[1674251150402,0.029,22306.0,22304.0,0.898334]
[1674251150698,0.011,22306.0,22304.0,0.898334]
[1674251150944,0.018,22305.0,22304.0,0.898334]
[1674251151706,0.011,22306.0,22304.0,0.898334]
[1674251152738,0.029,22306.0,22304.0,0.898334]
[1674251155519,0.029,22306.0,22304.0,0.598334]
[1674251155779,0.029,22306.0,22303.0,1.22453681]
[1674251156027,0.21402243,22306.0,22303.0,0.77617581]
[1674251156285,0.02888638,22306.0,22303.0,0.77617581]
[1674251157073,0.01088638,22306.0,22303.0,0.77617581]
[1674251157426,0.02688638,22306.0,22303.0,0.77617581]
[1674251158627,0.02688638,22306.0,22304.0,0.15]
[1674251158881,0.02688638,22306.0,22303.0,0.77617581]
[1674251159386,0.01088638,22306.0,22303.0,0.77617581]
[1674251159640,0.02888638,22306.0,22303.0,0.77617581]
[1674251159906,0.01088638,22306.0,22303.0,0.77617581]
[1674251160159,0.02688638,22306.0,22304.0,0.15]
[1674251160429,0.02688638,22306.0,22303.0,0.77617581]
[1674251160942,0.01088638,22306.0,22303.0,0.77617581]
[1674251161192,0.02888638,22306.0,22303.0,0.77617581]
[1674251161446,0.02888638,22306.0,22304.0,0.15]
[1674251161957,0.02888638,22306.0,22303.0,0.77617581]
[1674251162209,0.317306,22305.0,22303.0,0.77617581]
[1674251162460,0.316638,22304.0,22303.0,0.76368352]
[1674251162708,0.01088638,22306.0,22303.0,0.76368352]
[1674251163244,0.02888638,22306.0,22304.0,0.15]
[1674251163495,0.01088638,22306.0,22304.0,0.15]
[1674251163748,0.02688638,22306.0,22304.0,0.15]
[1674251164522,0.02688638,22306.0,22303.0,0.91368352]
[1674251165315,0.01088638,22306.0,22303.0,0.76368352]
[1674251165572,0.0085,22305.0,22303.0,0.76368352]
[1674251165826,0.334066,22305.0,22303.0,0.76368352]
[1674251166078,0.0085,22305.0,22303.0,0.76368352]
[1674251166583,0.51028643,22305.0,22303.0,0.76368352]
[1674251166847,0.386581,22304.0,22303.0,0.76368352]
[1674251167096,0.0764,22304.0,22303.0,0.76368352]
[1674251167351,0.542745,22304.0,22303.0,0.76368352]
[1674251168116,0.392745,22304.0,22303.0,0.76368352]
[1674251168628,0.502745,22304.0,22303.0,0.76368352]
[1674251168882,0.392745,22304.0,22303.0,0.76368352]
[1674251169130,0.502745,22304.0,22303.0,0.76368352]
[1674251169632,0.502745,22304.0,22303.0,0.75368352]
[1674251172173,0.542745,22304.0,22303.0,0.75368352]
[1674251172427,0.652745,22304.0,22303.0,0.75368352]
[1674251172786,0.542745,22304.0,22303.0,0.75368352]
[1674251172935,0.675745,22304.0,22303.0,0.75368352]
[1674251173716,0.675745,22304.0,22303.0,0.52653011]
[1674251175209,0.457845,22304.0,22303.0,0.52653011]
[1674251176548,0.607845,22304.0,22303.0,0.52653011]
[1674251176768,1.056195,22304.0,22303.0,0.52623011]
[1674251177019,1.28940834,22304.0,22303.0,0.52623011]
[1674251177279,1.35780834,22304.0,22303.0,0.52623011]
[1674251177529,1.35780834,22304.0,22297.0,0.00724108]
[1674251177809,0.15,22302.0,22297.0,0.19038742]
[1674251178035,0.323593,22301.0,22297.0,0.00724108]
[1674251178278,0.19352243,22301.0,22297.0,0.15724108]
[1674251178775,0.19352243,22301.0,22297.0,0.45724108]
[1674251179024,0.19352243,22301.0,22297.0,0.00724108]
[1674251179781,0.0235,22301.0,22297.0,0.00724108]
[1674251180048,0.20852243,22301.0,22297.0,0.00724108]
[1674251180321,0.15,22300.0,22297.0,0.00724108]
[1674251180809,0.20059073,22300.0,22297.0,0.00724108]
[1674251181313,0.15,22299.0,22296.0,0.00133951]
[1674251182317,0.165,22299.0,22296.0,0.00133951]
[1674251183066,0.16506,22299.0,22296.0,0.00133951]
[1674251183321,0.01506,22299.0,22296.0,0.00133951]
[1674251183571,0.01506,22299.0,22296.0,0.45133951]
[1674251183834,0.05050288,22298.0,22296.0,0.45133951]
[1674251184092,0.05050288,22298.0,22296.0,0.30133951]
[1674251184889,0.06550288,22298.0,22296.0,0.30133951]
[1674251185146,0.06550288,22298.0,22296.0,0.45133951]
[1674251185463,0.06550288,22298.0,22296.0,0.89984251]
[1674251185686,0.06550288,22298.0,22296.0,0.96824251]
[1674251185964,0.06550288,22298.0,22296.0,1.07496007]
[1674251186222,0.04689077,22298.0,22297.0,0.32511756]
[1674251186487,0.04689077,22298.0,22297.0,1.07360756]
[1674251186742,0.04689077,22298.0,22297.0,1.2338771]
[1674251187014,0.06412628,22298.0,22297.0,1.45619606]
[1674251187226,0.06412628,22298.0,22297.0,1.34943853]
[1674251187526,0.06412628,22298.0,22297.0,1.23390589]
[1674251187783,0.04912628,22298.0,22297.0,1.07363635]
[1674251188148,0.06418628,22298.0,22297.0,1.07363635]
[1674251188542,0.06418628,22298.0,22297.0,1.34943186]
[1674251188796,0.06418628,22298.0,22297.0,1.24268551]
[1674251189050,0.06412628,22298.0,22297.0,1.74440985]
[1674251189317,0.06412628,22298.0,22297.0,1.69100897]
[1674251189571,0.06412628,22298.0,22297.0,1.80035216]
[1674251189832,0.06412628,22298.0,22297.0,1.68223612]
[1674251190618,0.06412628,22298.0,22297.0,1.80032779]
[1674251190873,0.05174917,22298.0,22297.0,1.80032779]
[1674251191126,0.05174917,22298.0,22297.0,1.69357467]
[1674251191647,0.16861528,22305.0,22298.0,0.02306154]
[1674251191648,0.00097528,22305.0,22298.0,0.02306154]
[1674251191955,0.00097528,22305.0,22304.0,0.0683]
[1674251192204,0.01088638,22306.0,22304.0,1.14814634]
[1674251192485,0.01088638,22306.0,22305.0,0.3]
[1674251193436,0.01088638,22306.0,22304.0,1.467347]
[1674251193961,0.01088638,22306.0,22304.0,1.019]
[1674251194212,0.01088638,22306.0,22304.0,0.9507]
[1674251194464,0.01088638,22306.0,22304.0,0.8967]
[1674251194734,0.01088638,22306.0,22305.0,0.051]
[1674251194992,0.01388638,22306.0,22304.0,0.8967]
[1674251195247,0.01688638,22306.0,22305.0,0.3]
[1674251195506,0.31895601,22309.0,22304.0,0.8967]
[1674251195816,0.003,22306.0,22305.0,0.051]
[1674251196520,0.31895601,22309.0,22304.0,0.8967]
[1674251196783,0.15096601,22309.0,22305.0,0.3]
[1674251197059,0.15096601,22309.0,22305.0,0.93145534]
[1674251197289,0.15096601,22309.0,22305.0,0.48314634]
[1674251197532,0.15096601,22309.0,22305.0,0.3]
[1674251197812,0.19352243,22308.0,22303.0,0.448367]
[1674251198065,0.18502243,22307.0,22305.0,0.051]
[1674251198381,0.0769,22308.0,22305.0,0.051]
[1674251198855,0.316218,22307.0,22301.0,0.44839]
[1674251199127,0.72881743,22306.0,22305.0,0.051]
[1674251199389,0.543795,22306.0,22300.0,0.448422]
[1674251199671,0.50570843,22305.0,22300.0,0.448422]
[1674251199900,0.33502243,22304.0,22299.0,0.7094]
[1674251200148,0.18502243,22303.0,22299.0,0.7094]
[1674251200402,0.0085,22302.0,22299.0,0.7094]
[1674251200657,0.15,22304.0,22299.0,1.157843]
[1674251200916,0.15,22304.0,22299.0,1.34098934]
[1674251201175,0.33502243,22304.0,22299.0,1.78943934]
[1674251201440,0.33902243,22304.0,22299.0,1.656293]
[1674251201958,0.33902243,22304.0,22299.0,1.83943934]
[1674251201959,0.004,22304.0,22299.0,1.83943934]
[1674251202210,0.18902243,22304.0,22300.0,0.3]
[1674251202467,0.0125,22304.0,22301.0,0.15]
[1674251202731,0.004,22304.0,22301.0,0.33314634]
[1674251202951,0.004,22304.0,22302.0,0.3]
[1674251203201,0.15,22305.0,22302.0,0.3]
[1674251203456,0.004,22304.0,22301.0,0.598402]
[1674251203711,0.00097095,22306.0,22302.0,0.748384]
[1674251203979,0.00097095,22306.0,22304.0,0.10671058]
[1674251204298,0.00097095,22306.0,22305.0,1.63484392]
[1674251204560,0.01065586,22312.0,22305.0,1.91389811]
[1674251204841,0.01065586,22312.0,22307.0,0.0684]
[1674251205096,0.01065586,22312.0,22308.0,1.52792534]
[1674251205345,0.19567829,22312.0,22308.0,0.896518]
[1674251205596,0.01065586,22312.0,22308.0,1.22966434]
[1674251205852,0.01065586,22312.0,22309.0,0.18314634]
[1674251206105,0.01065586,22312.0,22310.0,0.896458]
[1674251206360,0.01065586,22312.0,22311.0,0.3]
[1674251206628,0.01065586,22312.0,22310.0,0.896458]
[1674251206888,0.01065586,22312.0,22311.0,0.3]
[1674251207155,0.01265586,22312.0,22311.0,0.3]
[1674251207511,0.01065586,22312.0,22311.0,0.3]
[1674251207762,0.01265586,22312.0,22311.0,0.363]
[1674251208018,0.01265586,22312.0,22311.0,0.063]
[1674251208949,0.10685586,22312.0,22311.0,0.063]
[1674251209204,0.42646986,22312.0,22311.0,0.063]
[1674251209729,0.01265586,22312.0,22311.0,0.063]
[1674251210782,0.01265586,22312.0,22311.0,0.05172562]
[1674251211556,0.05537586,22312.0,22311.0,0.05172562]
[1674251212564,0.01265586,22312.0,22311.0,0.04072562]
[1674251215162,0.01265586,22312.0,22311.0,0.48893462]
[1674251216479,0.01265586,22312.0,22311.0,0.78893462]
[1674251216733,0.01265586,22312.0,22311.0,0.48893462]
[1674251217236,0.01265586,22312.0,22311.0,0.78893462]
[1674251217746,0.01265586,22312.0,22311.0,0.63893462]
[1674251217974,0.01265586,22312.0,22311.0,0.48893462]
[1674251218221,0.01265586,22312.0,22311.0,0.78893462]
[1674251218485,0.01265586,22312.0,22311.0,0.55497449]
[1674251218745,0.01265586,22312.0,22311.0,0.70497449]
[1674251219222,0.01265586,22312.0,22311.0,0.55497449]
[1674251219476,0.01265586,22312.0,22311.0,0.55104092]
[1674251219985,0.01265586,22312.0,22311.0,0.25104092]
[1674251220240,0.01265586,22312.0,22311.0,0.55104092]
[1674251220495,0.01265586,22312.0,22311.0,0.70104092]
[1674251221012,0.01265586,22312.0,22311.0,0.54917719]
[1674251221270,0.05537586,22312.0,22311.0,0.24917719]
[1674251222028,0.01265586,22312.0,22311.0,0.24917719]
[1674251222784,0.05537586,22312.0,22311.0,0.24917719]
[1674251223051,0.01265586,22312.0,22310.0,0.448214]
[1674251224290,0.01265586,22312.0,22311.0,0.3]
[1674251224552,0.01065586,22312.0,22311.0,0.3]
[1674251224807,0.01965586,22312.0,22310.0,1.056424]
[1674251225070,0.01965586,22312.0,22310.0,0.906424]
[1674251225588,0.01065586,22312.0,22310.0,0.896424]
[1674251225844,0.05837586,22312.0,22311.0,0.01]
[1674251226095,0.05337586,22312.0,22310.0,0.896424]
[1674251226346,0.06237586,22312.0,22310.0,0.906424]
[1674251227349,0.01965586,22312.0,22310.0,0.458214]
[1674251227857,0.02431771,22311.0,22310.0,0.458214]
[1674251228389,0.02431771,22311.0,22310.0,0.758214]
[1674251228653,0.02431771,22311.0,22310.0,0.908214]
[1674251228904,0.02431771,22311.0,22310.0,1.346443]
[1674251229165,0.03331771,22311.0,22310.0,1.356443]
[1674251231236,0.21834014,22311.0,22310.0,0.608229]
[1674251231501,0.21834014,22311.0,22310.0,0.16]
[1674251231753,0.44062371,22311.0,22310.0,0.16]
[1674251232016,0.10971771,22311.0,22310.0,0.16]
[1674251232268,0.10971771,22311.0,22309.0,0.7808]
[1674251232269,0.41333771,22311.0,22309.0,0.7808]
[1674251232525,0.322605,22310.0,22309.0,0.7808]
[1674251233356,0.331105,22310.0,22309.0,0.7808]
[1674251233864,0.35551079,22310.0,22309.0,0.7808]
[1674251234114,0.50551079,22310.0,22309.0,0.7808]
[1674251234364,0.75893322,22310.0,22309.0,0.7808]
[1674251234614,0.72311079,22310.0,22309.0,0.7818]
[1674251234873,0.64211079,22310.0,22309.0,0.7808]
[1674251235147,0.72311079,22310.0,22309.0,0.7818]
[1674251235405,0.57371079,22310.0,22309.0,0.7808]
[1674251235668,0.65571079,22310.0,22309.0,0.7818]
[1674251235921,0.57371079,22310.0,22309.0,0.7808]
[1674251236173,0.65571079,22310.0,22309.0,0.7818]
[1674251236429,0.57371079,22310.0,22309.0,0.7808]
[1674251236725,0.64721079,22310.0,22309.0,0.7818]
[1674251236982,0.65571079,22310.0,22309.0,0.7818]
[1674251237226,0.80310745,22310.0,22309.0,0.7818]
[1674251237483,0.65571079,22310.0,22309.0,0.7818]
[1674251238770,0.64721079,22310.0,22309.0,0.7818]
[1674251239033,0.72921079,22310.0,22309.0,0.7828]
[1674251239799,0.72921079,22310.0,22309.0,0.55385749]
[1674251240053,0.18840579,22310.0,22309.0,0.55385749]
[1674251241103,0.02440579,22310.0,22309.0,0.55185749]
[1674251241604,0.07340579,22310.0,22309.0,0.55385749]
[1674251241856,0.10026647,22312.0,22309.0,0.55185749]
[1674251242166,0.049,22310.0,22309.0,0.55385749]
[1674251242833,0.10026647,22312.0,22309.0,0.55185749]
[1674251243099,0.14926647,22312.0,22309.0,0.55385749]
[1674251243380,0.14926647,22312.0,22309.0,0.32839263]
[1674251243635,0.311871,22311.0,22309.0,0.32839263]
[1674251243885,0.323387,22310.0,22309.0,0.32839263]
[1674251244173,0.10026647,22312.0,22309.0,0.32639263]
[1674251244707,0.049,22311.0,22309.0,0.32839263]
[1674251244964,0.07875586,22312.0,22309.0,0.32639263]
[1674251245223,0.31277829,22312.0,22309.0,0.32839263]
[1674251245475,0.0684,22310.0,22309.0,0.32639263]
[1674251245737,0.535101,22310.0,22309.0,0.32839263]
[1674251246056,0.535101,22310.0,22309.0,0.32639263]
[1674251246565,0.543601,22310.0,22309.0,0.32639263]
[1674251247831,0.99183,22310.0,22309.0,0.32639263]
[1674251248331,1.08183,22310.0,22309.0,0.32639263]
[1674251249953,1.10331714,22310.0,22309.0,0.32639263]
[1674251251175,1.10331714,22310.0,22309.0,0.08245758]
[1674251253697,0.15,22309.0,22303.0,0.00053958]
[1674251253933,0.55968043,22308.0,22303.0,0.18368592]
[1674251254214,0.26142243,22308.0,22304.0,0.15]
[1674251254491,0.15,22307.0,22303.0,0.00053958]
[1674251254762,0.33502243,22307.0,22303.0,0.00153958]
[1674251255074,0.35638588,22307.0,22303.0,0.00153958]
[1674251255533,0.35638588,22307.0,22303.0,0.00053958]
[1674251255785,0.17136345,22307.0,22303.0,0.00053958]
[1674251256031,0.17136345,22307.0,22303.0,0.15053958]
[1674251256286,0.02136345,22307.0,22303.0,0.15053958]
[1674251256798,0.02736345,22307.0,22303.0,0.15153958]
[1674251257059,0.02736345,22307.0,22303.0,0.78304692]
[1674251257348,0.03736345,22307.0,22305.0,0.15]
[1674251257652,0.02136345,22307.0,22305.0,0.15]
[1674251257851,0.02736345,22307.0,22305.0,0.33314634]
[1674251258115,0.02736345,22307.0,22305.0,0.15]
[1674251258623,0.02136345,22307.0,22305.0,0.15]
[1674251258930,0.03036345,22307.0,22305.0,0.151]
[1674251259160,0.03036345,22307.0,22305.0,0.599322]
[1674251259413,0.03036345,22307.0,22306.0,0.3]
[1674251259672,0.03036345,22307.0,22305.0,0.897642]
[1674251259935,0.02136345,22307.0,22305.0,0.449322]
[1674251260229,0.20638588,22307.0,22305.0,0.448322]
[1674251260444,0.02136345,22307.0,22304.0,0.448344]
[1674251260696,0.21638588,22307.0,22306.0,0.001]
[1674251260956,0.24206824,22309.0,22304.0,0.448344]
[1674251261208,0.0769,22307.0,22305.0,0.001]
[1674251261459,0.529423,22306.0,22303.0,0.00053958]
[1674251261716,0.387475,22305.0,22304.0,0.001]
[1674251262730,0.387475,22305.0,22303.0,0.00053958]
[1674251262935,0.0683,22305.0,22303.0,0.00053958]
[1674251263196,0.313759,22304.0,22303.0,0.00053958]
[1674251264227,0.463759,22304.0,22303.0,0.00053958]
[1674251264483,0.552759,22304.0,22303.0,0.00053958]
[1674251264991,0.57714797,22304.0,22303.0,0.00053958]
[1674251265768,0.58564797,22304.0,22303.0,0.00053958]
[1674251267303,0.27188897,22304.0,22303.0,0.00053958]
[1674251268332,0.57248597,22304.0,22303.0,0.00053958]
[1674251268596,0.59005297,22304.0,22303.0,0.00053958]
[1674251268847,0.27188897,22304.0,22303.0,0.00053958]
[1674251269147,0.50930697,22304.0,22303.0,0.00053958]
[1674251269406,0.58980697,22304.0,22303.0,0.00053958]
[1674251269940,0.68728767,22304.0,22303.0,0.00053958]
[1674251270191,0.59830697,22304.0,22303.0,0.00053958]
[1674251270688,0.66670697,22304.0,22303.0,0.00053958]
[1674251272457,0.66550697,22304.0,22303.0,0.00053958]
[1674251274285,0.59710697,22304.0,22303.0,0.00053958]
[1674251275821,0.82810827,22304.0,22303.0,0.00053958]
[1674251276073,0.89640827,22304.0,22303.0,0.00053958]
[1674251277604,0.66540697,22304.0,22303.0,0.00053958]
[1674251278581,0.71980698,22304.0,22303.0,0.00053958]
[1674251280124,0.65150698,22304.0,22303.0,0.00053958]
[1674251283237,0.65050698,22304.0,22303.0,0.00053958]
[1674251283774,0.15,22303.0,22296.0,2.67928302]
[1674251284070,0.15,22301.0,22296.0,0.0684]
[1674251284319,0.18502243,22300.0,22296.0,0.2184]
[1674251284760,0.18502243,22299.0,22296.0,0.0684]
[1674251284764,0.18502243,22300.0,22296.0,0.2184]
[1674251284981,0.20722704,22300.0,22296.0,0.5194]
[1674251285214,0.20722704,22300.0,22296.0,0.2194]
[1674251285429,0.20722704,22300.0,22296.0,0.666893]
[1674251285430,0.02220461,22300.0,22296.0,0.666893]
[1674251285649,0.21622704,22300.0,22296.0,0.667893]
[1674251285928,0.03120461,22300.0,22296.0,0.667893]
[1674251286177,0.03120461,22300.0,22296.0,0.2194]
[1674251287225,0.03120461,22300.0,22298.0,0.15]
[1674251287482,0.03120461,22300.0,22297.0,0.3]
[1674251287984,0.03120461,22300.0,22298.0,0.15]
[1674251288242,0.03120461,22300.0,22296.0,0.2194]
[1674251288558,0.21622704,22300.0,22296.0,0.2194]
[1674251288992,0.02220461,22300.0,22296.0,0.2184]
[1674251289244,0.21622704,22300.0,22296.0,0.2184]
[1674251289499,0.22522704,22300.0,22296.0,0.2194]
[1674251290011,0.22522704,22300.0,22298.0,0.0684]
[1674251290012,0.04020461,22300.0,22298.0,0.0684]
[1674251290793,0.02220461,22300.0,22298.0,0.0684]
[1674251291118,0.03120461,22300.0,22298.0,0.0694]
[1674251291613,0.03120461,22300.0,22298.0,0.001]
[1674251291871,0.03120461,22300.0,22298.0,0.0694]
[1674251292863,0.03120461,22300.0,22298.0,0.3694]
[1674251293903,0.03120461,22300.0,22299.0,0.15]
[1674251294165,0.03120461,22300.0,22298.0,0.817865]
[1674251294427,0.03120461,22300.0,22299.0,0.15]
[1674251294956,0.02220461,22300.0,22299.0,0.15]
[1674251295214,0.03220461,22300.0,22299.0,0.151]
[1674251295480,0.03220461,22300.0,22299.0,0.451]
[1674251296737,0.03220461,22300.0,22299.0,0.69382091]
[1674251297249,0.02247922,22300.0,22299.0,0.97407011]
[1674251297502,0.02247922,22300.0,22299.0,0.8674492]
[1674251297774,0.00099449,22303.0,22299.0,1.1572539]
[1674251298015,0.00099449,22303.0,22302.0,0.24374461]
[1674251298277,0.00099449,22303.0,22302.0,1.48358]
[1674251298535,0.00099449,22303.0,22302.0,1.59052461]
[1674251298787,0.05440001,22304.0,22302.0,1.59052461]
[1674251299052,0.02011497,22303.0,22302.0,1.57559691]
[1674251299302,0.02011497,22303.0,22302.0,1.61507014]